bitfinex-derivatives/quotes_SOLF0:USTF0_20250311
["timestamp","ask_amount","ask_price","bid_price","bid_amount"]
[1741702072759,0.05552207,122.15,122.12,0.06236171]
[1741702073257,0.05552207,122.15,122.14,8.1887]
[1741702073858,194.0,122.23,122.12,28.93349524]
[1741702074061,194.0,122.23,122.12,28.87113353]
[1741702074260,194.0,122.23,122.16,8.1871]
[1741702074461,194.0,122.23,122.12,28.87113353]
[1741702074760,194.0,122.23,122.15,28.87113353]
[1741702075060,0.05178778,122.19,122.16,0.05830067]
[1741702075467,0.05178778,122.19,122.15,28.87113353]
[1741702075663,0.05178778,122.19,122.16,0.05684031]
[1741702076761,194.0,122.27,122.18,28.87113353]
[1741702076966,8.5945,122.26,122.15,28.87113353]
[1741702077966,0.05694915,122.22,122.19,0.06084946]
[1741702079758,8.2486,122.3,122.19,0.06084946]
[1741702079969,8.2486,122.3,122.18,28.87113353]
[1741702080865,0.06213429,122.25,122.23,0.05547349]
[1741702081064,8.2486,122.3,122.23,0.05547349]
[1741702081270,194.0,122.35,122.24,28.87113353]
[1741702081462,206.5117,122.39,122.27,28.87113353]
[1741702081664,202.2486,122.39,122.3,28.87113353]
[1741702081964,8.2486,122.39,122.3,28.87113353]
[1741702082674,0.06178295,122.36,122.33,0.05383713]
[1741702082973,0.06178295,122.36,122.33,28.92497066]
[1741702083271,33.59512964,122.43,122.33,28.92497066]
[1741702083773,62.46626317,122.43,122.3,33.09003353]
[1741702084270,194.0,122.42,122.3,33.09003353]
[1741702084485,194.0,122.42,122.35,0.06279374]
[1741702084669,28.87113353,122.4,122.35,0.06279374]
[1741702085368,194.0,122.42,122.35,0.06279374]
[1741702086765,28.87113353,122.4,122.27,28.87113353]
[1741702086969,8.1767,122.33,122.26,4.2172]
[1741702087169,28.87113353,122.37,122.24,118.74696319]
[1741702087370,8.1998,122.36,122.24,122.94206319]
[1741702087668,8.1998,122.36,122.31,8.1768]
[1741702087972,8.1998,122.36,122.24,122.94206319]
[1741702087973,194.0,122.43,122.32,28.87113353]
[1741702088169,4.0361,122.44,122.35,28.87113353]
[1741702088671,4.0361,122.44,122.37,8.1733]
[1741702088875,4.17,122.43,122.34,28.87113353]
[1741702089265,0.0261535,122.4,122.37,0.06138645]
[1741702089471,194.0,122.49,122.37,28.93251998]
[1741702089780,198.17,122.54,122.42,28.87113353]
[1741702089973,198.17,122.54,122.43,8.5777]
[1741702090172,194.0,122.54,122.45,28.87113353]
[1741702090772,4.2687,122.56,122.49,8.1648]
[1741702090978,4.2687,122.56,122.48,0.06134333]
[1741702091280,28.87113353,122.55,122.43,41.83293353]
[1741702091468,4.2687,122.56,122.51,0.05261119]
[1741702091671,4.2687,122.56,122.48,28.87113353]
[1741702091875,4.2687,122.56,122.52,0.05360614]
[1741702092076,194.0,122.57,122.52,0.05360614]
[1741702092276,198.2128,122.57,122.52,0.05360614]
[1741702092877,198.2128,122.57,122.43,12.9618]
[1741702092878,28.87113353,122.56,122.44,28.87113353]
[1741702093073,198.2128,122.57,122.46,28.87113353]
[1741702093276,198.2128,122.57,122.48,28.87113353]
[1741702093581,4.2128,122.57,122.48,28.87113353]
[1741702093976,4.17,122.58,122.53,8.1626]
[1741702094283,0.05360614,122.54,122.51,0.05693476]
[1741702094576,0.05360614,122.54,122.51,0.0569763]
[1741702094972,0.05360614,122.54,122.47,8.1661]
[1741702094973,28.92473967,122.54,122.47,8.1661]
[1741702095169,28.92473967,122.54,122.43,8.5777]
[1741702095369,4.17,122.58,122.4,269.9]
[1741702095370,28.87113353,122.52,122.4,28.87113353]
[1741702095573,4.0799,122.51,122.42,8.1695]
[1741702095774,4.0799,122.51,122.4,28.87113353]
[1741702095775,28.87113353,122.5,122.38,28.87113353]
[1741702095981,28.87113353,122.48,122.36,28.87113353]
[1741702096186,0.05454027,122.45,122.43,0.0541505]
[1741702096676,0.05454027,122.45,122.35,8.5272]
[1741702097083,8.1689,122.44,122.37,8.1734]
[1741702097272,28.87113353,122.45,122.35,8.5272]
[1741702097474,28.87113353,122.41,122.33,89.87582966]
[1741702097679,8.1734,122.37,122.33,89.87582966]
[1741702097985,0.05367573,122.38,122.36,0.05247266]
[1741702098280,0.05367573,122.38,122.33,89.87582966]
[1741702098281,28.87113353,122.37,122.33,89.87582966]
[1741702098786,4.10757573,122.38,122.28,33.09613353]
[1741702098983,4.10757573,122.38,122.28,4.225]
[1741702099185,4.0539,122.38,122.28,4.225]
[1741702099385,0.05485487,122.34,122.32,0.05830621]
[1741702099986,0.05485487,122.34,122.24,33.09583353]
[1741702100378,28.87113353,122.35,122.24,33.09583353]
[1741702100785,37.04603353,122.35,122.27,8.1799]
[1741702100980,28.87113353,122.35,122.24,33.09583353]
[1741702101186,28.93389363,122.32,122.2,89.87582966]
[1741702101493,194.0,122.31,122.2,89.87582966]
[1741702101691,194.0,122.31,122.21,28.87113353]
[1741702101898,194.0,122.31,122.2,89.87582966]
[1741702102393,28.87113353,122.29,122.2,98.06002966]
[1741702102588,0.05589115,122.27,122.24,0.0617202]
[1741702103088,3.9596,122.3,122.24,0.0617202]
[1741702103292,0.06289844,122.27,122.24,0.0617202]
[1741702105996,28.87113353,122.26,122.15,33.01433353]
[1741702106493,194.0,122.25,122.15,4.1432]
[1741702106686,194.0,122.25,122.15,33.01433353]
[1741702107282,0.05697872,122.21,122.19,0.05422584]
[1741702109595,0.05697872,122.21,122.12,28.87113353]
[1741702109795,28.87113353,122.2,122.12,8.19]
[1741702109994,28.87113353,122.2,122.09,33.11663353]
[1741702110697,28.87113353,122.23,122.12,28.87113353]
[1741702111001,28.87113353,122.25,122.13,0.06015736]
[1741702111201,4.1899,122.24,122.12,28.87113353]
[1741702111594,4.1899,122.24,122.15,28.87113353]
[1741702112196,0.05631559,122.21,122.18,0.06095659]
[1741702113003,0.05631559,122.21,122.2,8.1847]
[1741702113199,194.0,122.27,122.18,28.93209012]
[1741702113398,273.9129,122.29,122.19,4.172]
[1741702113596,8.1818,122.25,122.2,8.1843]
[1741702113800,28.87113353,122.25,122.15,28.87113353]
[1741702114201,28.87113353,122.25,122.14,4.3008]
[1741702114602,0.05775181,122.21,122.19,0.06104827]
[1741702115707,0.05775181,122.21,122.2,8.1847]
[1741702116204,40.9661,122.38,122.2,8.1847]
[1741702116205,194.0,122.33,122.3,8.1778]
[1741702116396,202.2187,122.37,122.26,28.87113353]
[1741702117012,8.2187,122.37,122.29,28.87113353]
[1741702117211,0.06291914,122.33,122.3,4.31593605]
[1741702117411,0.06291914,122.33,122.3,0.06093605]
[1741702120320,198.0581,122.4,122.32,28.87113353]
[1741702120511,4.0581,122.4,122.32,28.87113353]
[1741702120716,198.0777,122.44,122.32,28.87113353]
[1741702121019,8.1703,122.42,122.35,8.1741]
[1741702121223,226.94883353,122.44,122.32,28.87113353]
[1741702121414,28.87113353,122.41,122.31,4.3188]
[1741702121615,0.05165563,122.39,122.37,0.06259943]
[1741702122419,0.05165563,122.39,122.28,4.0147]
[1741702122725,293.42226582,122.48,122.28,4.0147]
[1741702122726,222.87113353,122.57,122.38,57.74226706]
[1741702122932,134.20112674,122.6,122.53,28.87113353]
[1741702123220,238.3225282,122.65,122.59,28.87113353]
[1741702123418,36.45046426,122.64,122.54,269.86]
[1741702123619,36.45046426,122.63,122.54,269.86]
[1741702123813,132.97015784,122.65,122.62,28.87113353]
[1741702124016,38.65835784,122.65,122.63,269.86]
[1741702124227,36.45046426,122.74,122.69,8.1517]
[1741702124525,36.45046426,122.8,122.72,28.87113353]
[1741702124718,9.8,122.84,122.67,28.87113353]
[1741702124919,36.45046426,122.86,122.78,28.87113353]
[1741702125120,36.45046426,122.91,122.84,28.87113353]
[1741702125324,36.45046426,122.95,122.89,28.87113353]
[1741702125626,1.381e-05,122.93,122.92,28.87113353]
[1741702125819,36.45046426,123.01,122.92,28.87113353]
[1741702126018,36.45046426,123.0,122.96,28.87113353]
[1741702126216,4.0463,123.14,122.99,28.87113353]
[1741702126421,194.0,123.18,123.08,28.87113353]
[1741702126619,198.0463,123.26,123.08,28.87113353]
[1741702126818,194.0,123.25,123.11,28.87113353]
[1741702127021,0.06232852,123.15,123.13,0.05182911]
[1741702127223,2.852e-05,123.15,123.14,28.87113353]
[1741702127419,8.4244,123.34,123.14,310.77987932]
[1741702127621,202.4244,123.34,123.23,28.87113353]
[1741702127816,203.3225282,123.33,123.2,28.87113353]
[1741702128021,28.87113353,123.23,123.14,12.74874579]
[1741702128226,28.87113353,123.26,123.14,191.0]
[1741702128523,28.87113353,123.25,123.17,5.6838246]
[1741702128721,0.05845762,123.21,123.19,0.05222272]
[1741702128916,28.87113353,123.22,123.17,5.6838246]
[1741702129122,28.87113353,123.22,123.15,7.96796612]
[1741702129322,269.16,123.26,123.15,7.96796612]
[1741702129526,269.16,123.26,123.05,269.16]
[1741702129722,28.87113353,123.17,123.03,25.2980786]
[1741702130023,28.87113353,123.11,123.03,190.59094579]
[1741702130230,28.92503264,123.11,122.97,28.87113353]
[1741702130528,28.87113353,123.11,122.95,269.16]
[1741702130731,28.87113353,123.05,122.91,28.87113353]
[1741702131223,194.0,123.15,122.98,82.84626395]
[1741702131423,194.0,123.14,122.99,28.87113353]
[1741702131823,194.0,123.14,122.98,82.84626395]
[1741702131824,28.87113353,123.09,122.98,82.84626395]
[1741702132028,28.87113353,123.06,122.98,82.84626395]
[1741702132731,0.0574409,123.03,122.98,82.84626395]
[1741702132926,28.87113353,123.13,123.0,28.87113353]
[1741702133125,203.3225282,123.2,123.0,28.87113353]
[1741702133126,28.87113353,123.16,123.0,28.87113353]
[1741702133337,28.87113353,123.17,123.03,28.87113353]
[1741702133634,28.87113353,123.14,123.0,28.87113353]
[1741702133828,28.87113353,123.11,122.98,82.84626395]
[1741702134028,28.87113353,123.05,122.98,82.84626395]
[1741702134525,28.87113353,123.07,122.98,82.84626395]
[1741702134732,28.87113353,123.04,122.98,82.84626395]
[1741702135032,28.87113353,123.07,122.98,82.84626395]
[1741702135224,28.87113353,123.04,122.98,82.84626395]
[1741702135423,28.9303591,123.04,122.98,82.84626395]
[1741702135732,28.87113353,123.02,122.95,124.26939592]
[1741702135928,28.87113353,123.0,122.95,124.26939592]
[1741702136122,28.87113353,122.97,122.95,124.26939592]
[1741702136323,8.1341,122.96,122.95,119.55659592]
[1741702136527,28.87113353,122.99,122.86,28.87113353]
[1741702136726,8.133,122.98,122.86,28.87113353]
[1741702136923,28.87113353,122.95,122.93,0.05986833]
[1741702137127,297.55113353,123.01,122.93,0.05986833]
[1741702137329,28.87113353,123.04,122.89,28.87113353]
[1741702137635,28.87113353,123.01,122.96,0.06032573]
[1741702137826,28.87113353,122.98,122.96,0.00116521]
[1741702138134,194.0,123.02,122.8,273.0461]
[1741702138327,9.3225282,123.04,122.8,273.0461]
[1741702138328,28.87113353,122.98,122.83,28.87113353]
[1741702138727,28.87113353,122.98,122.84,1.62813415]
[1741702138934,28.87113353,123.01,122.86,28.87113353]
[1741702139123,0.05641464,122.92,122.9,0.05194252]
[1741702139528,28.87113353,122.98,122.86,28.87113353]
[1741702139829,0.05759926,122.92,122.9,0.05710137]
[1741702140232,194.0,123.02,122.89,28.87113353]
[1741702140530,223.33608353,123.06,122.92,28.87113353]
[1741702140727,0.05295319,122.97,122.92,28.87113353]
[1741702140926,0.05295319,122.97,122.9,4.062]
[1741702141125,28.87113353,123.03,122.92,28.87113353]
[1741702141331,0.46495,123.06,122.95,28.87113353]
[1741702141833,0.46495,123.06,122.98,28.87113353]
[1741702142136,0.46495,123.06,122.99,0.05364162]
[1741702142430,28.87113353,123.18,123.04,28.87113353]
[1741702142624,1.62377202,123.17,123.04,28.87113353]
[1741702142827,1.62377202,123.17,123.07,28.87113353]
[1741702143032,1.62377202,123.17,123.1,28.87113353]
[1741702143430,28.87113353,123.24,123.13,28.87113353]
[1741702143639,28.87113353,123.26,123.13,28.87113353]
[1741702143831,28.87113353,123.26,123.1,4.0037]
[1741702143832,4.1963,123.29,123.16,28.87113353]
[1741702144032,28.87113353,123.27,123.12,219.46207932]
[1741702144536,28.87113353,123.33,123.21,0.06186542]
[1741702144737,8.1112,123.31,123.2,28.87113353]
[1741702144933,28.87113353,123.33,123.2,28.87113353]
[1741702145431,194.0,123.4,123.21,28.87113353]
[1741702145635,28.87113353,123.43,123.31,28.87113353]
[1741702145831,28.87113353,123.45,123.31,28.87113353]
[1741702146036,222.87113353,123.48,123.31,28.87113353]
[1741702146037,0.0549206,123.38,123.31,28.87113353]
[1741702146237,0.0549206,123.38,123.31,219.46207932]
[1741702146435,28.87113353,123.46,123.37,0.06072154]
[1741702146635,28.87113353,123.43,123.31,28.87113353]
[1741702146939,28.87113353,123.37,123.24,28.87113353]
[1741702147536,0.04753063,123.32,123.29,0.05538994]
[1741702147938,28.87113353,123.31,123.16,458.89094579]
[1741702148237,28.87113353,123.28,123.16,268.3]
[1741702148440,28.87113353,123.28,123.13,4.2764]
[1741702148638,28.87113353,123.21,123.13,4.2764]
[1741702148831,268.1,123.27,123.09,28.87113353]
[1741702149040,28.87113353,123.23,123.09,28.87113353]
[1741702149242,28.87113353,123.23,123.1,1.62469536]
[1741702149440,28.87113353,123.23,123.15,0.05533269]
[1741702149441,0.05500266,123.17,123.15,0.05533269]
[1741702149634,28.92613619,123.17,123.05,4.2764]
[1741702149834,28.87113353,123.17,123.05,4.2764]
[1741702150336,28.87113353,123.21,123.1,28.87113353]
[1741702150654,28.87113353,123.24,123.1,28.87113353]
[1741702150943,0.05429591,123.17,123.14,0.05150242]
[1741702151330,28.87113353,123.28,123.16,28.87113353]
[1741702151535,8.1149,123.26,123.16,28.87113353]
[1741702151738,28.87113353,123.28,123.16,28.87113353]
[1741702151930,28.87113353,123.25,123.14,0.05192477]
[1741702152133,28.87113353,123.22,123.1,28.87113353]
[1741702152535,28.87113353,123.19,123.07,28.87113353]
[1741702152735,28.87113353,123.2,123.07,28.87113353]
[1741702153137,0.0558121,123.14,123.12,0.06171001]
[1741702153544,28.87113353,123.17,123.05,4.2764]
[1741702153738,28.87113353,123.11,123.01,28.87113353]
[1741702153938,0.0606302,123.14,122.98,28.87113353]
[1741702154138,28.87113353,123.11,122.98,28.87113353]
[1741702154447,28.87113353,123.21,122.95,4.0426]
[1741702154448,28.87113353,123.09,122.95,4.0426]
[1741702154646,28.87113353,123.09,122.95,32.91373353]
[1741702154848,28.87113353,123.12,122.98,28.87113353]
[1741702155043,0.05304695,123.03,122.95,194.63354579]
[1741702155238,0.05304695,123.03,123.01,0.05904723]
[1741702155443,28.87113353,123.06,122.95,4.0426]
[1741702155847,0.05819045,123.03,123.01,0.05354189]
[1741702156250,0.05819045,123.03,122.9,458.67094579]
[1741702156251,8.1302,123.02,122.91,28.87113353]
[1741702156438,0.05819045,123.03,122.94,28.87113353]
[1741702156643,28.87113353,123.09,122.94,28.87113353]
[1741702156844,8.1309,123.01,122.94,28.87113353]
[1741702157043,28.87113353,123.03,122.91,4.3253]
[1741702157240,28.87113353,123.03,122.92,28.87113353]
[1741702157743,0.05966377,122.98,122.96,0.05651056]
[1741702158248,28.87113353,123.03,122.89,28.87113353]
[1741702159346,28.87113353,122.99,122.86,8.3904]
[1741702159659,0.06164676,122.97,122.95,0.06123737]
[1741702159945,33.16513353,123.1,122.95,28.87113353]
[1741702160145,194.0,123.15,123.03,28.87113353]
[1741702160354,3.9853,123.16,123.03,28.87113353]
[1741702160748,268.24,123.18,123.08,0.06175186]
[1741702160952,256.91675797,123.1,123.08,0.06175186]
[1741702161249,230.58505797,123.1,123.03,28.87113353]
[1741702161453,30.05281754,123.11,123.09,28.87113353]
[1741702161648,23.47951754,123.11,123.09,28.87113353]
[1741702162049,45.07922631,123.14,123.09,31.31113353]
[1741702162252,45.07922631,123.14,123.12,28.87113353]
[1741702162643,60.10563508,123.19,123.12,28.87113353]
[1741702162644,60.10563508,123.19,123.12,221.90207932]
[1741702162948,60.10563508,123.19,123.16,28.87113353]
[1741702163650,60.10563508,123.19,123.13,28.87113353]
[1741702163845,60.10563508,123.19,123.07,28.87113353]
[1741702164050,0.05794686,123.19,123.07,28.87113353]
[1741702164251,28.87113353,123.21,123.1,28.87113353]
[1741702164447,7.87746002,123.16,123.1,28.87113353]
[1741702164645,28.87113353,123.21,123.1,28.87113353]
[1741702164849,8.1226,123.14,123.07,28.87113353]
[1741702165146,28.87113353,123.21,123.07,28.87113353]
[1741702165352,8.1188,123.2,123.1,28.87113353]
[1741702165547,28.87113353,123.27,123.16,28.87113353]
[1741702165750,4.1978,123.33,123.19,28.87113353]
[1741702165950,28.87113353,123.28,123.16,297.01113353]
[1741702166252,28.87113353,123.28,123.16,268.14]
[1741702166447,8.1171,123.22,123.17,7.34342525]
[1741702166755,0.05482103,123.23,123.21,0.05691264]
[1741702167051,1.41248097,123.38,123.21,219.46207932]
[1741702167251,28.87113353,123.35,123.22,19.16730013]
[1741702167455,28.87113353,123.35,123.23,19.16730013]
[1741702167655,28.87113353,123.35,123.24,19.16730013]
[1741702167856,28.87113353,123.35,123.25,19.16730013]
[1741702168056,28.87113353,123.35,123.26,19.16730013]
[1741702168256,28.87113353,123.35,123.27,19.16730013]
[1741702168452,0.0543823,123.31,123.29,0.06011476]
[1741702168653,0.0543823,123.31,123.3,7.33303313]
[1741702169048,0.0543823,123.31,123.3,21.63803632]
[1741702169446,1.62113966,123.37,123.33,28.87113353]
[1741702169758,1.62113966,123.37,123.34,57.77496753]
[1741702169954,194.0,123.61,123.36,28.87113353]
[1741702170159,43.9816405,123.62,123.48,28.87113353]
[1741702170361,28.87113353,123.61,123.49,19.19803632]
[1741702170552,28.87113353,123.61,123.5,19.19803632]
[1741702170754,0.05409105,123.56,123.54,0.06207111]
[1741702170948,0.05409105,123.56,123.55,7.36523352]
[1741702171262,0.05409105,123.56,123.55,7.36186307]
[1741702171760,0.05409105,123.56,123.55,7.36785657]
[1741702172257,8.14869105,123.56,123.55,7.36785657]
[1741702172463,0.05409105,123.56,123.54,0.06207111]
[1741702172960,2.47409105,123.56,123.45,267.96]
[1741702173161,28.87113353,123.55,123.46,7.34039146]
[1741702173354,28.87113353,123.55,123.42,28.87113353]
[1741702173551,194.0,123.62,123.45,28.87113353]
[1741702173757,37.30503353,123.64,123.51,28.87113353]
[1741702173955,8.4339,123.64,123.56,0.0560363]
[1741702174150,0.05355215,123.59,123.51,219.46207932]
[1741702174359,0.05355215,123.59,123.52,7.31646933]
[1741702174563,8.4339,123.64,123.49,28.87113353]
[1741702174755,28.87113353,123.63,123.5,7.29907124]
[1741702174960,0.06226822,123.57,123.54,0.05221077]
[1741702175161,28.93340175,123.57,123.42,458.27094579]
[1741702175462,28.87113353,123.57,123.43,36.17239619]
[1741702175665,28.87113353,123.57,123.44,7.30126266]
[1741702175866,28.87113353,123.54,123.41,28.87113353]
[1741702176164,28.87113353,123.51,123.39,28.87113353]
[1741702176360,0.0615191,123.49,123.46,0.05754756]
[1741702176758,8.0983,123.51,123.42,28.87113353]
[1741702176963,0.05888357,123.49,123.46,0.05274618]
[1741702177362,4.057,123.53,123.42,28.87113353]
[1741702177761,0.05729647,123.49,123.46,0.05768896]
[1741702177958,8.1005,123.47,123.46,0.05768896]
[1741702178162,28.87113353,123.48,123.34,267.48]
[1741702178360,28.87113353,123.48,123.35,7.29917617]
[1741702178562,28.87113353,123.45,123.31,28.87113353]
[1741702179165,28.87113353,123.47,123.34,28.87113353]
[1741702179369,28.87113353,123.49,123.37,28.92688727]
[1741702179568,28.87113353,123.49,123.37,0.05575374]
[1741702179773,28.87113353,123.43,123.31,219.46207932]
[1741702179967,28.87113353,123.43,123.31,28.87113353]
[1741702180167,28.87113353,123.46,123.31,28.87113353]
[1741702180572,28.87113353,123.43,123.31,28.87113353]
[1741702180762,28.92540434,123.4,123.28,28.87113353]
[1741702181172,4.2963,123.42,123.31,28.87113353]
[1741702181568,4.2963,123.42,123.28,28.87113353]
[1741702181777,28.87113353,123.4,123.28,28.87113353]
[1741702182271,0.0614478,123.35,123.33,0.05191401]
[1741702182673,28.87113353,123.4,123.33,0.05191401]
[1741702182871,0.05756193,123.35,123.33,0.05191401]
[1741702183273,13.0019,123.42,123.33,0.05191401]
[1741702183673,8.6542,123.42,123.34,28.87113353]
[1741702183871,8.6542,123.42,123.34,36.19270357]
[1741702184074,4.0242,123.49,123.4,28.87113353]
[1741702184371,8.276,123.56,123.41,19.00824974]
[1741702184579,8.276,123.56,123.46,28.87113353]
[1741702184773,8.276,123.56,123.47,7.29648907]
[1741702184974,0.00310625,123.5,123.47,0.05249393]
[1741702185376,8.276,123.56,123.43,28.87113353]
[1741702185575,28.87113353,123.54,123.4,28.87113353]
[1741702185778,28.87113353,123.51,123.4,28.87113353]
[1741702186071,28.87113353,123.51,123.37,28.87113353]
[1741702186284,28.87113353,123.48,123.34,28.87113353]
[1741702186472,0.05813415,123.47,123.34,28.87113353]
[1741702186672,28.87113353,123.48,123.34,28.87113353]
[1741702186874,28.87113353,123.45,123.34,28.87113353]
[1741702187071,8.1042,123.43,123.34,28.87113353]
[1741702187274,28.87113353,123.45,123.35,7.31624547]
[1741702187478,28.87113353,123.45,123.34,28.87113353]
[1741702187673,8.1052,123.42,123.34,28.87113353]
[1741702187977,0.05742749,123.41,123.39,0.05315329]
[1741702188475,28.87113353,123.48,123.36,28.87113353]
[1741702188678,0.05917022,123.41,123.39,0.05559184]
[1741702189175,28.87113353,123.42,123.31,296.33113353]
[1741702189378,0.05286619,123.41,123.39,0.06162036]
[1741702189783,8.235,123.44,123.31,28.87113353]
[1741702189971,28.87113353,123.43,123.25,467.59820517]
[1741702190278,152.51678231,123.51,123.32,28.87113353]
[1741702190574,28.87113353,123.44,123.32,28.87113353]
[1741702190975,28.87113353,123.47,123.37,0.06100379]
[1741702191173,0.06127317,123.39,123.37,0.06100379]
[1741702191476,28.87113353,123.42,123.29,28.87113353]
[1741702191477,3.9783,123.41,123.29,28.87113353]
[1741702191681,28.87113353,123.47,123.32,28.87113353]
[1741702191882,28.87113353,123.47,123.33,7.31112817]
[1741702192076,28.87113353,123.47,123.35,28.87113353]
[1741702192280,28.87113353,123.47,123.36,7.3009829]
[1741702192472,28.87113353,123.47,123.35,28.87113353]
[1741702192671,0.06111384,123.42,123.4,0.05404591]
[1741702193178,28.87113353,123.44,123.4,0.05404591]
[1741702193377,0.06242273,123.42,123.4,0.05404591]
[1741702193576,0.06242273,123.42,123.31,28.87113353]
[1741702193777,28.87113353,123.41,123.28,28.87113353]
[1741702194179,28.87113353,123.38,123.33,0.0549375]
[1741702194381,0.05473506,123.36,123.24,486.88207932]
[1741702194580,0.05473506,123.36,123.27,28.87113353]
[1741702194871,28.87113353,123.37,123.24,486.88207932]
[1741702195474,8.1094,123.35,123.25,7.32814573]
[1741702195677,8.4401,123.42,123.29,0.05901262]
[1741702195678,0.05818228,123.32,123.29,0.05901262]
[1741702195882,37.31123353,123.42,123.3,28.87113353]
[1741702196084,37.31123353,123.42,123.31,7.31640682]
[1741702196282,8.4401,123.42,123.33,28.87113353]
[1741702196787,8.4401,123.42,123.3,28.87113353]
[1741702196983,37.31123353,123.42,123.31,7.31431155]
[1741702197285,0.06186691,123.39,123.36,0.05297843]
[1741702197879,31.37300044,123.39,123.27,28.87113353]
[1741702198180,28.87113353,123.36,123.24,296.29113353]
[1741702198677,28.87113353,123.33,123.21,219.46207932]
[1741702198884,28.87113353,123.3,123.18,296.35113353]
[1741702199187,0.05384538,123.28,123.19,7.34066838]
[1741702199379,28.87113353,123.3,123.18,28.87113353]
[1741702199676,28.87113353,123.27,123.15,28.87113353]
[1741702199873,28.87113353,123.27,123.16,7.35180528]
[1741702200075,8.1176,123.23,123.17,7.35180528]
[1741702200276,4.032,123.29,123.18,36.22170766]
[1741702200483,0.05919016,123.21,123.19,0.06011215]
[1741702200680,4.032,123.29,123.16,28.87113353]
[1741702200882,4.032,123.29,123.19,0.06243602]
[1741702201086,28.87113353,123.27,123.19,0.06243602]
[1741702201276,28.87113353,123.27,123.14,117.34123336]
[1741702201484,28.87113353,123.21,123.15,19.1520277]
[1741702201686,28.87113353,123.21,123.09,38.50413431]
[1741702201884,28.87113353,123.21,123.1,19.16962039]
[1741702202181,179.97726706,123.27,123.14,0.05650089]
[1741702202381,28.87113353,123.24,123.14,0.05650089]
[1741702202589,28.87113353,123.24,123.15,8.1222]
[1741702202783,4.032,123.29,123.18,28.87113353]
[1741702203287,4.0713,123.31,123.21,28.87113353]
[1741702203487,0.05541249,123.25,123.22,19.06731555]
[1741702203689,4.0713,123.31,123.23,19.00680942]
[1741702203886,4.0713,123.31,123.24,7.31357063]
[1741702204084,32.94243353,123.31,123.18,28.87113353]
[1741702204390,28.87113353,123.28,123.19,19.0608942]
[1741702204594,28.87113353,123.28,123.2,7.33111315]
[1741702204784,28.87113353,123.25,123.14,28.87113353]
[1741702204983,0.05587558,123.25,123.22,0.05890379]
[1741702205190,28.87113353,123.24,123.11,36.99573353]
[1741702205488,28.87113353,123.24,123.12,7.36653267]
[1741702205695,28.87113353,123.21,123.13,19.15298494]
[1741702205985,28.87113353,123.21,123.03,28.87113353]
[1741702205986,28.87113353,123.21,123.14,7.36653267]
[1741702206191,28.87113353,123.21,123.07,28.87113353]
[1741702206395,28.87113353,123.18,123.16,0.05741808]
[1741702206596,28.87113353,123.18,123.04,28.87113353]
[1741702206785,8.124,123.13,123.05,19.02098233]
[1741702207094,4.1817,123.17,123.1,28.87113353]
[1741702207389,4.3253,123.18,123.11,19.02721464]
[1741702207584,4.3253,123.18,123.12,7.31576243]
[1741702207892,0.06052831,123.16,123.13,7.3726524]
[1741702208085,0.06052831,123.16,123.14,7.31688561]
[1741702208289,33.19643353,123.24,123.15,7.3115674]
[1741702208487,33.19643353,123.24,123.16,7.3115674]
[1741702208688,33.19643353,123.24,123.1,28.87113353]
[1741702208889,28.87113353,123.18,123.11,19.00179685]
[1741702209197,28.87113353,123.21,123.13,0.05794935]
[1741702209383,0.05387786,123.16,123.14,7.30766905]
[1741702209591,0.05387786,123.16,123.09,28.87113353]
[1741702209894,33.19643353,123.24,123.14,0.06011666]
[1741702210088,4.1817,123.25,123.16,28.87113353]
[1741702210292,0.05968828,123.2,123.18,0.05177349]
[1741702210700,28.87113353,123.21,123.18,0.05177349]
[1741702210892,0.06013663,123.2,123.18,0.05177349]
[1741702211284,4.1817,123.25,123.19,7.30444188]
[1741702211488,28.87113353,123.31,123.2,18.98969393]
[1741702211693,28.87113353,123.31,123.21,18.98969393]
[1741702211894,28.87113353,123.31,123.22,7.30519723]
[1741702212094,28.87113353,123.28,123.16,28.87113353]
[1741702212294,28.87113353,123.28,123.17,18.98781903]
[1741702212491,28.87113353,123.28,123.18,18.98781903]
[1741702212791,0.05625575,123.23,123.21,0.05387727]
[1741702213091,28.87113353,123.27,123.13,296.65113353]
[1741702213289,28.87113353,123.24,123.14,18.98665579]
[1741702213488,0.05511027,123.23,123.21,0.05742781]
[1741702213690,28.87113353,123.24,123.1,221.08677468]
[1741702213891,4.2158,123.23,123.11,20.60715963]
[1741702214091,8.1192,123.2,123.12,28.73102768]
[1741702214293,28.87113353,123.21,123.13,20.60689576]
[1741702214487,28.87113353,123.18,123.14,7.30099855]
[1741702214693,28.87113353,123.15,123.06,8.1277]
[1741702214889,0.05613383,123.17,123.07,18.99138881]
[1741702215087,0.05613383,123.17,123.08,47.86252234]